bitfinex/quotes_SOLUSD_20251117
["timestamp","ask_amount","ask_price","bid_price","bid_amount"]
[1763360476010,105.58,141.51,141.45,1.79560371]
[1763360476184,0.68,141.5,141.45,1.79560371]
[1763360476610,0.68,141.5,141.45,2.49560371]
[1763360476816,0.68,141.5,141.46,1.79560371]
[1763360479190,0.68,141.5,141.45,2.49560371]
[1763360480694,1.79560371,141.49,141.43,2.47560371]
[1763360481119,0.68,141.48,141.43,2.47560371]
[1763360481409,0.68,141.48,141.42,2.47560371]
[1763360481410,2.47560371,141.48,141.42,2.47560371]
[1763360481811,2.47560371,141.48,141.43,1.79560371]
[1763360482019,0.68,141.47,141.43,1.79560371]
[1763360482194,0.68,141.47,141.43,2.47560371]
[1763360482990,2.47560371,141.47,141.42,1.79560371]
[1763360483189,2.47560371,141.47,141.41,27.19128989]
[1763360483408,0.68,141.46,141.41,24.71568618]
[1763360483688,0.68,141.46,141.41,26.51128989]
[1763360483914,0.68,141.46,141.41,27.19128989]
[1763360484611,0.68,141.46,141.42,1.79560371]
[1763360484790,0.68,141.46,141.42,2.47560371]
[1763360485226,0.68,141.46,141.42,1.79560371]
[1763360486193,1.79560371,141.44,141.41,0.2]
[1763360486398,1.79560371,141.42,141.41,0.2]
[1763360486600,2.47560371,141.42,141.41,0.2]
[1763360487916,0.68,141.42,141.41,0.2]
[1763360489592,2.47560371,141.42,141.41,0.2]
[1763360502038,9.65801855,141.42,141.41,0.2]
[1763360502221,22.6512,141.39,141.37,21.31433662]
[1763360502533,2.50560371,141.38,141.37,21.31433662]
[1763360502731,2.50560371,141.38,141.32,0.2]
[1763360502921,1.79560371,141.35,141.32,0.2]
[1763360503235,1.79560371,141.36,141.32,0.2]
[1763360503733,2.50560371,141.35,141.32,0.2]
[1763360504430,2.50560371,141.35,141.32,21.44327766]
[1763360504732,2.50560371,141.35,141.32,0.2]
[1763360504733,1.79560371,141.33,141.32,0.2]
[1763360505141,2.50560371,141.33,141.32,0.2]
[1763360506542,12.2944314,141.33,141.32,0.2]
[1763360506742,2.50560371,141.33,141.32,0.2]
[1763360512826,34.9456314,141.33,141.32,0.2]
[1763360513633,25.15680371,141.33,141.32,0.2]
[1763360518850,26.17412551,141.33,141.32,0.2]
[1763360520645,3.52292551,141.33,141.32,0.2]
[1763360520945,26.17412551,141.33,141.32,0.2]
[1763360521132,25.46412551,141.33,141.32,0.2]
[1763360521652,26.17412551,141.33,141.32,0.2]
[1763360523119,2.81292551,141.33,141.32,0.2]
[1763360523951,3.52292551,141.33,141.32,0.2]
[1763360524648,107.71292551,141.35,141.32,0.9]
[1763360525027,108.42292551,141.35,141.32,0.9]
[1763360525440,107.71292551,141.35,141.32,0.9]
[1763360525646,104.9,141.35,141.33,0.7]
[1763360525834,2.81292551,141.39,141.34,2.81292551]
[1763360526034,2.81292551,141.39,141.35,0.7]
[1763360526239,131.07412551,141.4,141.35,3.51292551]
[1763360526443,108.42292551,141.4,141.35,3.51292551]
[1763360526645,104.9,141.4,141.37,2.81292551]
[1763360526841,0.71,141.45,141.39,2.81292551]
[1763360527034,2.81292551,141.44,141.39,2.81292551]
[1763360527246,2.81292551,141.44,141.4,0.7]
[1763360527556,0.71,141.43,141.4,0.7]
[1763360527720,2.81292551,141.41,141.36,0.7]
[1763360527926,2.81292551,141.4,141.36,0.7]
[1763360530250,2.81292551,141.41,141.38,0.7]
[1763360531351,2.81292551,141.42,141.38,0.7]
[1763360532072,2.81292551,141.4,141.35,0.7]
[1763360532234,107.71292551,141.4,141.34,2.81292551]
[1763360532556,107.71292551,141.4,141.36,0.7]
[1763360533253,104.9,141.4,141.36,3.51292551]
[1763360533558,108.42292551,141.4,141.36,0.7]
[1763360534748,104.9,141.4,141.36,3.51292551]
[1763360534946,104.9,141.4,141.37,0.7]
[1763360536461,2.81292551,141.41,141.37,0.7]
[1763360538061,3.49292551,141.41,141.37,0.7]
[1763360538358,2.81292551,141.41,141.37,0.7]
[1763360538564,107.71292551,141.44,141.39,2.81292551]
[1763360538858,3.49292551,141.43,141.37,0.7]
[1763360539047,2.81292551,141.41,141.37,0.7]
[1763360539245,2.81292551,141.4,141.37,0.7]
[1763360539453,2.81292551,141.4,141.35,0.7]
[1763360539454,2.81292551,141.39,141.35,0.7]
[1763360539635,2.81292551,141.39,141.32,7.27598799]
[1763360539636,2.81292551,141.37,141.32,0.9]
[1763360539840,105.58,141.39,141.32,0.9]
[1763360539841,2.81292551,141.35,141.32,0.9]
[1763360540559,25.46412551,141.38,141.33,3.51292551]
[1763360541071,26.14412551,141.38,141.34,0.7]
[1763360541244,2.81292551,141.37,141.34,0.7]
[1763360541443,107.71292551,141.39,141.34,3.51292551]
[1763360541645,104.9,141.39,141.35,3.51292551]
[1763360541852,104.9,141.39,141.36,0.7]
[1763360542059,3.49292551,141.39,141.35,0.7]
[1763360542848,2.81292551,141.39,141.35,0.7]
[1763360543362,2.81292551,141.36,141.33,0.7]
[1763360543854,2.81292551,141.37,141.33,0.7]
[1763360544653,26.14412551,141.38,141.33,3.51292551]
[1763360544847,26.14412551,141.38,141.33,0.7]
[1763360545347,3.49292551,141.37,141.33,0.7]
[1763360546763,0.68,141.37,141.33,0.7]
[1763360548080,3.49292551,141.37,141.33,0.7]
[1763360549149,2.81292551,141.38,141.33,3.51292551]
[1763360549348,104.9,141.4,141.34,9.78882769]
[1763360549570,104.9,141.4,141.36,2.81292551]
[1763360550065,105.58,141.4,141.36,3.51292551]
[1763360550471,108.39292551,141.4,141.36,0.7]
[1763360551369,2.81292551,141.37,141.32,0.2]
[1763360551578,2.81292551,141.38,141.33,0.72]
[1763360551783,2.81292551,141.38,141.33,3.53292551]
[1763360551982,3.53292551,141.38,141.33,3.53292551]
[1763360552149,0.72,141.38,141.34,0.72]
[1763360552350,104.9,141.4,141.34,0.72]
[1763360552661,104.9,141.4,141.35,2.81292551]
[1763360553063,105.62,141.4,141.36,0.72]
[1763360553383,105.62,141.4,141.35,2.81292551]
[1763360553384,25.46412551,141.37,141.32,0.2]
[1763360553559,2.81292551,141.33,141.32,0.2]
[1763360553956,3.53292551,141.35,141.32,0.2]
[1763360554762,23.3712,141.37,141.32,3.73292551]
[1763360554963,3.53292551,141.37,141.32,3.73292551]
[1763360555254,3.53292551,141.37,141.33,0.72]
[1763360555658,3.53292551,141.36,141.32,0.2]
[1763360556156,3.53292551,141.36,141.32,0.92]
[1763360558377,0.72,141.35,141.32,0.2]
[1763360558863,3.53292551,141.35,141.32,0.2]
[1763360560173,3.53292551,141.34,141.32,0.2]
[1763360560677,0.72,141.33,141.32,0.2]
[1763360560871,3.53292551,141.34,141.32,0.2]
[1763360561057,104.9,141.36,141.33,0.72]
[1763360561255,104.9,141.36,141.32,0.2]
[1763360561256,0.72,141.35,141.32,0.2]
[1763360561987,104.9,141.36,141.32,3.73292551]
[1763360562272,105.62,141.36,141.32,0.92]
[1763360562682,108.43292551,141.36,141.32,0.92]
[1763360563376,105.62,141.36,141.32,3.73292551]
[1763360563692,105.62,141.36,141.33,0.72]
[1763360564180,105.62,141.36,141.32,3.01292551]
[1763360564381,105.62,141.36,141.32,3.73292551]
[1763360564884,105.62,141.36,141.32,3.01292551]
[1763360565179,105.62,141.36,141.33,0.72]
[1763360565383,105.62,141.36,141.32,3.73292551]
[1763360565770,0.72,141.35,141.32,0.2]
[1763360565971,3.53292551,141.35,141.32,0.2]
[1763360567469,0.72,141.34,141.32,0.2]
[1763360568078,3.53292551,141.34,141.32,0.2]
[1763360568891,3.53292551,141.33,141.32,0.2]
[1763360569691,26.18412551,141.33,141.32,0.2]
[1763360571483,0.72,141.33,141.32,0.2]
[1763360571785,128.2712,141.35,141.32,0.2]
[1763360571959,130.36412551,141.35,141.32,0.2]
[1763360572285,3.53292551,141.34,141.32,0.2]
[1763360574582,107.71292551,141.35,141.32,0.2]
[1763360574963,0.72,141.34,141.32,0.2]
[1763360575376,0.53342549,141.34,141.32,0.2]
[1763360579475,104.9,141.35,141.32,0.92]
[1763360579680,104.9,141.35,141.32,3.73292551]
[1763360579875,104.9,141.35,141.32,3.01292551]
[1763360580093,104.9,141.35,141.33,0.72]
[1763360581101,104.9,141.35,141.32,0.9]
[1763360581586,104.9,141.4,141.34,1.79849391]
[1763360581794,2.50849391,141.39,141.33,2.49849391]
[1763360581968,2.50849391,141.39,141.34,2.49849391]
[1763360582471,0.71,141.38,141.35,0.7]
[1763360582883,2.50849391,141.39,141.35,0.7]
[1763360583170,0.71,141.39,141.35,0.7]
[1763360583481,2.50849391,141.39,141.35,0.7]
[1763360584999,0.71,141.38,141.34,1.79849391]
[1763360585296,2.50849391,141.38,141.34,0.7]
[1763360585496,0.71,141.38,141.35,0.7]
[1763360585797,2.50849391,141.39,141.35,0.7]
[1763360585996,0.71,141.39,141.35,2.49849391]
[1763360586244,0.71,141.44,141.38,1.79849391]
[1763360586416,5.83761098,141.49,141.36,16.98280333]
[1763360586417,2.50849391,141.46,141.4,1.79849391]
[1763360586572,2.50849391,141.45,141.4,1.79849391]
[1763360586771,25.15969391,141.45,141.4,2.49849391]
[1763360587074,0.71,141.44,141.4,2.49849391]
[1763360587384,0.71,141.44,141.4,0.7]
[1763360587892,1.79849391,141.46,141.41,1.79849391]
[1763360588195,0.71,141.47,141.43,1.79849391]
[1763360588588,2.50849391,141.49,141.44,0.7]
[1763360588773,1.79849391,141.49,141.44,0.7]
[1763360588969,0.71,141.48,141.44,2.49849391]
[1763360589471,0.71,141.48,141.45,0.7]
[1763360589872,2.50849391,141.5,141.45,2.49849391]
[1763360590195,2.50849391,141.49,141.44,0.7]
[1763360590373,2.50849391,141.49,141.44,2.49849391]
[1763360590574,0.71,141.48,141.44,2.49849391]
[1763360591396,0.71,141.48,141.42,0.7]
[1763360591397,1.79849391,141.47,141.42,0.7]
[1763360591794,2.50849391,141.46,141.4,19.49849391]
[1763360591971,1.79849391,141.44,141.4,17.0]
[1763360592176,2.50849391,141.43,141.4,17.0]
[1763360592393,0.71,141.43,141.4,17.0]
[1763360592573,24.44969391,141.44,141.4,17.0]
[1763360592773,0.71,141.43,141.4,17.0]
[1763360593798,24.44969391,141.44,141.4,17.7]
[1763360594002,0.71,141.43,141.4,17.0]
[1763360594406,0.71,141.43,141.4,17.7]
[1763360594707,2.50849391,141.43,141.37,0.7]
[1763360594880,2.50849391,141.43,141.37,2.49849391]
[1763360595080,2.50849391,141.43,141.38,1.79849391]
[1763360595295,2.50849391,141.43,141.38,2.49849391]
[1763360595601,0.71,141.42,141.38,2.49849391]
[1763360596005,2.50849391,141.42,141.37,1.79849391]
[1763360596307,1.79849391,141.41,141.34,22.6512]
[1763360596485,1.79849391,141.38,141.33,2.49849391]
[1763360596977,1.79849391,141.36,141.32,0.2]
[1763360597303,1.79849391,141.35,141.32,0.2]
[1763360597483,1.79849391,141.34,141.32,0.2]
[1763360597677,1.79849391,141.35,141.32,0.2]
[1763360598077,2.51849391,141.36,141.32,0.2]
[1763360598500,0.72,141.35,141.32,0.2]
[1763360603187,0.72,141.35,141.32,0.89]
[1763360605812,2.51849391,141.35,141.32,0.2]
[1763360606408,1.79849391,141.33,141.32,0.2]
[1763360606791,2.51849391,141.33,141.32,0.2]
[1763360612418,104.9,141.34,141.32,0.9]
[1763360612600,0.68,141.33,141.32,0.2]
[1763360614420,2.47849391,141.33,141.32,0.2]
[1763360618412,34.9185216,141.33,141.32,0.2]
[1763360623039,24.44969391,141.33,141.32,0.2]
[1763360623206,25.12969391,141.33,141.32,0.2]
[1763360626426,34.9185216,141.33,141.32,0.2]
[1763360635026,25.12969391,141.33,141.32,0.2]
[1763360640214,24.44969391,141.33,141.32,0.2]
[1763360642923,25.46309289,141.33,141.32,0.2]
[1763360643737,26.16309289,141.33,141.32,0.2]
[1763360645344,23.3512,141.33,141.32,0.2]
[1763360645521,26.16309289,141.33,141.32,0.2]
[1763360660360,25.46309289,141.33,141.32,0.2]
[1763360660731,26.16309289,141.33,141.32,0.2]
[1763360664744,22.6512,141.33,141.32,0.2]
[1763360664957,25.46309289,141.33,141.32,0.86]
[1763360665135,25.46309289,141.33,141.32,0.2]
[1763360665745,2.81189289,141.33,141.32,0.2]
[1763360666464,3.51189289,141.33,141.32,0.2]
[1763360667463,2.81189289,141.34,141.32,0.86]
[1763360667951,2.81189289,141.34,141.33,0.66]
[1763360668965,2.81189289,141.34,141.32,0.86]
[1763360669264,2.81189289,141.33,141.32,0.86]
[1763360669465,2.81189289,141.33,141.32,0.2]
[1763360669645,35.95192058,141.33,141.32,0.2]
[1763360678854,43.54263603,141.33,141.29,0.1]
[1763360679181,38.06381347,141.3,141.29,0.1]
[1763360679691,38.06381347,141.3,141.29,0.77]
[1763360679692,2.81189289,141.3,141.29,0.77]
[1763360680482,2.81189289,141.31,141.29,0.77]
[1763360680656,2.81189289,141.3,141.29,0.77]
[1763360686863,22.6512,141.33,141.29,0.77]
[1763360687081,2.81189289,141.31,141.29,0.77]
[1763360687889,2.81189289,141.3,141.29,0.77]
[1763360688785,2.81189289,141.3,141.29,0.1]
[1763360689193,2.81189289,141.3,141.29,0.77]
[1763360690778,2.81189289,141.3,141.29,0.0702018]
[1763360691797,2.81189289,141.3,141.29,0.7402018]
[1763360695096,2.81189289,141.3,141.29,0.0702018]
[1763360696183,3.50189289,141.3,141.29,0.0702018]
[1763360696580,6.3392754,141.3,141.29,0.0702018]
[1763360697070,9.15116829,141.3,141.29,0.0702018]
[1763360697276,31.80236829,141.3,141.29,0.0702018]
[1763360700998,41.59119598,141.3,141.29,0.0702018]
[1763360702804,44.97261075,141.3,141.29,0.0702018]
[1763360706714,35.9674102,141.3,141.29,0.0702018]
[1763360706908,44.97261075,141.3,141.29,0.0702018]
[1763360709512,22.6512,141.26,141.22,0.65]
[1763360709713,1.80104011,141.23,141.22,0.65]
[1763360709893,1.80104011,141.23,141.21,0.65]
[1763360710095,1.80104011,141.22,141.21,0.65]
[1763360711793,1.80104011,141.22,141.2,0.1]
[1763360711794,25.15224011,141.22,141.2,0.1]
[1763360712018,2.50104011,141.21,141.2,0.1]
[1763360712216,4.64023519,141.21,141.2,0.1]
[1763360714437,27.29143519,141.21,141.2,0.1]
[1763360714637,27.99143519,141.21,141.2,0.1]
[1763360714930,37.78026288,141.21,141.2,0.1]
[1763360716028,35.97922277,141.21,141.2,0.1]
[1763360716206,37.08026288,141.21,141.2,0.1]
[1763360716391,25.49039508,141.21,141.2,0.1]
[1763360716603,27.29143519,141.21,141.2,0.1]
[1763360716904,4.64023519,141.21,141.2,0.75]
[1763360717226,1.80104011,141.21,141.2,0.75]
[1763360717438,4.64023519,141.21,141.2,0.75]
[1763360717729,1.80104011,141.21,141.2,0.75]
[1763360718026,107.73919508,141.22,141.2,0.75]
[1763360718197,1.80104011,141.21,141.2,0.75]
[1763360718519,12.2498678,141.21,141.2,0.1]
[1763360719098,1.80104011,141.21,141.2,0.1]
[1763360720005,1.80104011,141.21,141.2,0.81]
[1763360725219,107.73919508,141.22,141.2,0.81]
[1763360725430,106.70104011,141.22,141.2,0.81]
[1763360725721,1.80104011,141.21,141.2,0.81]
[1763360727221,109.54003368,141.22,141.2,0.81]
[1763360727418,104.9,141.22,141.2,0.81]
[1763360728306,104.9,141.22,141.2,2.61104011]
[1763360728699,104.9,141.22,141.21,0.71]
[1763360730515,105.56,141.26,141.21,0.71]
[1763360730718,1.80104011,141.25,141.21,0.71]
[1763360731227,1.80104011,141.24,141.21,0.71]
[1763360732832,1.80104011,141.25,141.21,0.71]
[1763360734254,104.9,141.26,141.22,1.80104011]
[1763360734414,104.9,141.26,141.23,0.68]
[1763360734615,104.9,141.26,141.2,0.1]
[1763360734616,106.70104011,141.26,141.22,0.68]
[1763360736129,107.39104011,141.26,141.22,0.68]
[1763360737650,106.70104011,141.26,141.22,0.68]
[1763360737842,107.39104011,141.26,141.22,0.68]
[1763360738220,106.70104011,141.26,141.22,0.68]
[1763360738643,107.39104011,141.26,141.22,0.68]
[1763360738941,104.9,141.25,141.22,0.68]
[1763360740624,2.49104011,141.24,141.2,0.78]
[1763360740926,0.69,141.24,141.21,0.68]
[1763360741131,2.49104011,141.23,141.2,0.78]
[1763360741328,1.80104011,141.23,141.2,0.78]
[1763360741548,2.49104011,141.23,141.2,0.78]
[1763360741925,1.80104011,141.23,141.2,0.78]
[1763360742551,106.70104011,141.24,141.2,0.78]
[1763360742720,104.9,141.24,141.2,0.78]
[1763360743532,105.59,141.24,141.2,0.78]
[1763360745350,104.9,141.24,141.2,0.78]
[1763360745652,105.59,141.24,141.2,0.78]
[1763360746459,104.9,141.24,141.21,1.80104011]
[1763360746823,104.9,141.24,141.22,0.68]
[1763360749532,104.9,141.24,141.22,2.48104011]
[1763360750049,104.9,141.24,141.23,0.68]
[1763360750254,105.59,141.24,141.21,0.68]
[1763360750764,104.9,141.24,141.21,0.68]
[1763360753050,104.9,141.24,141.21,2.48104011]
[1763360753533,104.9,141.24,141.22,0.68]
[1763360758664,104.9,141.24,141.22,2.48104011]
[1763360758844,104.9,141.24,141.21,7.08162373]
[1763360758845,104.9,141.24,141.23,2.48104011]
[1763360759454,104.9,141.28,141.23,2.48104011]
[1763360759754,104.9,141.28,141.24,2.48104011]
[1763360760265,1.80104011,141.3,141.25,2.48104011]
[1763360760266,0.69,141.3,141.25,2.48104011]
[1763360760465,0.69,141.3,141.26,1.80104011]
[1763360760761,0.69,141.3,141.26,2.50104011]
[1763360761063,0.69,141.3,141.26,0.7]
[1763360762665,129.35224011,141.32,141.26,2.50104011]
[1763360762866,130.04224011,141.32,141.26,2.50104011]
[1763360763061,105.59,141.32,141.27,2.50104011]
[1763360763246,104.9,141.32,141.28,1.80104011]
[1763360763447,105.59,141.32,141.28,2.50104011]
[1763360763657,105.59,141.32,141.29,0.7]
[1763360763848,0.69,141.34,141.29,2.50104011]
[1763360764060,0.69,141.33,141.29,2.50104011]
[1763360764261,0.69,141.33,141.3,0.7]
[1763360766196,108.40132457,141.35,141.3,0.7]
[1763360766386,0.69,141.34,141.3,0.7]
[1763360767652,0.69,141.34,141.3,3.51132457]
[1763360767851,104.9,141.35,141.31,2.81132457]
[1763360768051,104.9,141.35,141.32,0.7]
[1763360768573,22.6512,141.38,141.32,3.51132457]
[1763360768763,0.69,141.37,141.32,3.51132457]
[1763360769074,3.50132457,141.37,141.32,3.51132457]
[1763360769270,3.50132457,141.37,141.32,0.7]
[1763360769477,0.69,141.36,141.32,0.7]
[1763360772880,0.69,141.36,141.32,3.51132457]
[1763360773974,0.69,141.36,141.3,0.7]
[1763360774276,3.50132457,141.36,141.3,3.51132457]
[1763360774677,0.69,141.35,141.3,24.55789399]
[1763360774884,0.69,141.35,141.31,0.7]
[1763360775591,0.69,141.35,141.3,21.74656942]
[1763360775879,0.69,141.35,141.3,24.55789399]
[1763360776288,0.69,141.35,141.3,23.85789399]
[1763360776471,0.69,141.35,141.31,0.7]
[1763360777296,2.81132457,141.33,141.27,2.81132457]
[1763360777484,107.71132457,141.32,141.27,0.7]
[1763360777862,0.71,141.31,141.27,0.7]
[1763360778463,0.71,141.31,141.27,3.51132457]
[1763360778958,24.08716585,141.36,141.25,9.78882769]
[1763360778959,0.71,141.35,141.3,2.81132457]
[1763360779286,3.52132457,141.35,141.3,3.51132457]
[1763360779507,0.71,141.34,141.3,3.51132457]
[1763360779803,0.71,141.34,141.31,0.7]
[1763360780385,3.52132457,141.36,141.31,0.7]
[1763360780586,3.52132457,141.36,141.31,3.51132457]
[1763360780884,0.71,141.35,141.31,3.51132457]
[1763360781070,0.71,141.35,141.32,0.7]
[1763360782956,2.81132457,141.36,141.32,0.7]
[1763360783162,0.71,141.37,141.32,3.51132457]
[1763360783683,3.52132457,141.37,141.33,0.7]
[1763360784076,0.71,141.36,141.33,0.7]
[1763360785473,3.52132457,141.37,141.33,0.7]
[1763360786084,0.71,141.37,141.33,0.7]
[1763360786285,0.71,141.37,141.33,3.51132457]
[1763360786668,0.71,141.37,141.34,0.7]
[1763360786869,22.6512,141.39,141.34,3.51132457]
[1763360786870,0.71,141.39,141.34,3.51132457]
[1763360787096,0.71,141.39,141.35,2.81132457]
[1763360787566,0.71,141.39,141.36,0.7]
[1763360788793,3.52132457,141.39,141.33,2.81132457]
[1763360788999,3.52132457,141.39,141.34,0.7]
[1763360789305,3.52132457,141.39,141.34,3.51132457]
[1763360789506,0.71,141.38,141.34,0.7]
[1763360789681,0.71,141.38,141.35,0.7]
[1763360790189,0.71,141.38,141.34,3.51132457]
[1763360791412,0.71,141.38,141.32,9.78882769]
[1763360791596,0.71,141.38,141.34,3.47132457]
[1763360791796,0.71,141.38,141.35,0.66]
[1763360793406,3.46132457,141.4,141.35,3.47132457]
[1763360793605,0.65,141.4,141.35,3.47132457]
[1763360793816,0.65,141.42,141.39,2.81132457]
[1763360794049,0.65,141.42,141.39,3.47132457]
[1763360794347,0.65,141.42,141.38,2.81132457]
[1763360794656,2.81132457,141.4,141.36,22.6512]
[1763360794810,2.81132457,141.37,141.32,3.67132457]
[1763360795317,0.65,141.36,141.32,0.66]
[1763360796647,0.65,141.36,141.32,3.47132457]
[1763360797028,0.65,141.36,141.33,0.66]
[1763360797647,0.65,141.36,141.32,3.47132457]
[1763360798431,3.46132457,141.36,141.31,25.46252457]
[1763360798630,0.65,141.35,141.31,2.81132457]
[1763360798930,0.65,141.35,141.31,3.47132457]
[1763360800148,108.36132457,141.35,141.29,3.47132457]
[1763360800668,3.46132457,141.34,141.29,3.47132457]
[1763360800954,3.46132457,141.34,141.29,2.81132457]
[1763360801132,0.65,141.33,141.29,2.81132457]
[1763360801333,0.65,141.33,141.29,3.47132457]
[1763360802635,0.65,141.33,141.28,25.46252457]
[1763360802636,3.46132457,141.33,141.28,25.46252457]
[1763360802842,3.46132457,141.33,141.28,23.3112]
[1763360803044,3.46132457,141.32,141.28,22.6512]
[1763360803252,3.46132457,141.32,141.28,23.3112]
[1763360803458,0.65,141.31,141.28,23.3112]
[1763360803632,0.65,141.31,141.28,22.6512]
[1763360803833,0.65,141.31,141.28,23.3112]
[1763360804143,0.65,141.32,141.28,26.12252457]
[1763360805759,3.46132457,141.32,141.27,0.66]
[1763360806156,0.65,141.31,141.27,0.66]
[1763360806861,0.65,141.31,141.27,3.47132457]
[1763360807463,0.65,141.31,141.28,0.66]
[1763360808265,0.65,141.31,141.27,2.81132457]
[1763360808266,3.46132457,141.31,141.26,2.81132457]
[1763360808562,3.46132457,141.31,141.26,3.47132457]
[1763360808769,0.65,141.3,141.26,3.47132457]
[1763360809144,0.65,141.3,141.25,0.66]
[1763360809145,3.46132457,141.3,141.25,0.66]
[1763360809470,3.46132457,141.3,141.25,3.47132457]
[1763360809646,3.46132457,141.3,141.24,25.46252457]
[1763360809647,0.65,141.29,141.24,25.46252457]
[1763360809838,0.65,141.29,141.25,0.66]
[1763360810059,0.65,141.29,141.25,3.47132457]
[1763360811362,0.65,141.29,141.25,2.81132457]
[1763360811549,0.65,141.29,141.26,0.66]
[1763360812275,0.65,141.29,141.26,3.47132457]
[1763360813083,104.9,141.33,141.26,3.47132457]
[1763360813251,105.55,141.32,141.27,3.47132457]
[1763360813783,0.65,141.31,141.28,0.66]
[1763360814655,0.65,141.31,141.27,3.47132457]
[1763360815557,0.65,141.31,141.28,0.66]
[1763360819879,0.65,141.31,141.25,7.07958974]
[1763360819880,3.46132457,141.31,141.26,2.81132457]
[1763360820376,0.65,141.3,141.26,3.47132457]
[1763360820970,0.65,141.3,141.26,2.81132457]
[1763360821274,0.65,141.3,141.27,0.7]
[1763360821465,0.65,141.3,141.25,2.81132457]
[1763360821977,0.65,141.3,141.26,0.7]
[1763360824691,0.65,141.3,141.26,3.51132457]
[1763360824892,0.65,141.3,141.26,2.49998949]
[1763360825274,0.65,141.3,141.26,0.7]
[1763360826992,0.65,141.3,141.23,7.08059787]
[1763360826993,1.79998949,141.28,141.23,1.79998949]
[1763360827172,0.69,141.27,141.24,0.7]
[1763360827792,0.69,141.27,141.23,2.49998949]
[1763360828404,0.69,141.27,141.23,0.7]
[1763360828591,0.69,141.27,141.22,23.24538305]
[1763360828592,2.48998949,141.27,141.21,23.3512]
[1763360828791,1.79998949,141.26,141.2,19.59998949]
[1763360828976,1.79998949,141.25,141.2,17.1]
[1763360829176,2.48998949,141.25,141.2,17.1]
[1763360829394,0.69,141.24,141.2,39.04432237]
[1763360829903,0.69,141.26,141.22,1.79998949]
[1763360830084,105.59,141.27,141.22,1.79998949]
[1763360830290,105.59,141.27,141.23,2.49998949]
[1763360831403,0.69,141.26,141.23,0.7]
[1763360831707,0.69,141.26,141.21,2.49998949]
[1763360832272,0.69,141.26,141.22,0.7]
[1763360833507,0.69,141.26,141.22,2.49998949]
[1763360836314,0.69,141.26,141.23,0.7]
[1763360837296,0.69,141.26,141.22,2.48998949]
[1763360840306,0.68,141.26,141.23,2.48998949]
[1763360842505,0.68,141.26,141.23,0.69]
[1763360844021,0.68,141.26,141.22,1.79998949]
[1763360844196,0.68,141.26,141.22,2.48998949]
[1763360844920,0.68,141.26,141.22,1.79998949]
[1763360845122,0.68,141.26,141.23,0.69]
[1763360845922,0.68,141.26,141.22,1.79998949]
[1763360846114,0.68,141.26,141.22,2.48998949]
[1763360846500,0.68,141.26,141.22,1.79998949]
[1763360847498,0.68,141.26,141.21,24.45118949]
[1763360847804,0.68,141.26,141.21,25.14118949]
[1763360848103,0.68,141.26,141.22,0.69]
[1763360848497,2.47998949,141.26,141.2,1.89998949]
[1763360848925,0.68,141.25,141.2,2.58998949]
[1763360849216,2.47998949,141.25,141.2,2.58998949]
[1763360849620,0.68,141.24,141.2,2.58998949]
[1763360854022,1.79998949,141.26,141.23,1.79998949]
[1763360854023,0.66,141.26,141.23,1.79998949]
[1763360854403,0.66,141.26,141.23,0.72]
[1763360856220,0.66,141.26,141.21,1.79998949]